fUST/lending_fUST_20260415
["ID","MTS","AMOUNT","RATE_DAILY","PERIOD"]
[420522930,1776235843997,-300.0,8.432e-05,2]
[420522931,1776235844010,-65.98663159,8.432e-05,2]
[420522932,1776235844030,-234.01336841,8.432e-05,2]
[420522933,1776235844041,-68.60803158,8.432e-05,2]
[420522935,1776235845061,166.5262746,0.0001833,60]
[420522943,1776235846700,-231.39196842,8.432e-05,2]
[420522944,1776235846714,-300.0,8.432e-05,2]
[420522945,1776235846736,-300.0,8.432e-05,2]
[420522946,1776235846750,-300.0,8.432e-05,2]
[420522947,1776235846763,-300.0,8.432e-05,2]
[420522948,1776235846779,-300.0,8.432e-05,2]
[420522949,1776235846793,-300.0,8.432e-05,2]
[420522950,1776235846806,-600.0,8.432e-05,2]
[420522951,1776235846822,-557.5788265,8.443e-05,2]
[420522952,1776235846836,-285.60043433,8.443e-05,2]
[420522953,1776235846856,-1944.71487167,8.443e-05,2]
[420522954,1776235846869,-773.2413689,8.445e-05,2]
[420522955,1776235846890,-500.0,8.493e-05,2]
[420522956,1776235846902,-801.85129955,8.5e-05,2]
[420522957,1776235846915,-831.51979763,8.555e-05,2]
[420522958,1776235846940,-862.28603014,8.61e-05,2]
[420522959,1776235846954,-179.163009,8.616e-05,2]
[420522960,1776235846969,-153.36,8.635e-05,7]
[420522961,1776235846989,-894.19061326,8.665e-05,2]
[420522962,1776235847001,-1500.0,8.716e-05,2]
[420522963,1776235847026,-1500.0,8.716e-05,2]
[420522964,1776235847038,-1500.0,8.716e-05,2]
[420522965,1776235847051,-927.27566595,8.72e-05,2]
[420522966,1776235847076,-961.58486559,8.775e-05,2]
[420522967,1776235847087,-6914.17800103,8.791e-05,2]
[420522968,1776235847110,-997.16350561,8.83e-05,2]
[420522969,1776235847123,-2000.0,8.854e-05,2]
[420522970,1776235847134,-578.20924308,8.991e-05,2]
[420522971,1776235847159,-2312.83697232,8.991e-05,2]
[420522972,1776235847169,-533.24697344,9.084e-05,2]
[420522973,1776235847179,-648.0,9.109e-05,2]
[420522974,1776235847201,-2208.0,9.168e-05,2]
[420522975,1776235847213,-645.0,9.168e-05,2]
[420522976,1776235847222,-1408.0,9.168e-05,2]
[420522977,1776235847242,-443.587,9.168e-05,2]
[420522978,1776235847253,-2000.0,9.264e-05,2]
[420522979,1776235847264,-2000.0,9.264e-05,2]
[420522980,1776235847282,-2000.0,9.264e-05,2]
[420522981,1776235847300,-232.0,9.266e-05,2]
[420522982,1776235847310,-589.0,9.266e-05,2]
[420522983,1776235847329,-720.0,9.276e-05,2]
[420522984,1776235847345,-2500.0,9.402e-05,2]
[420522985,1776235847355,-170.45706886,9.457e-05,2]
[420522986,1776235847365,-800.0,9.511e-05,2]
[420522987,1776235847395,-160.0,9.511e-05,2]
[420522988,1776235847404,-599.60298507,9.539e-05,2]
[420522989,1776235847434,-2398.4119403,9.539e-05,2]
[420522990,1776235847443,-719.0,9.753e-05,2]
[420522991,1776235847455,-235.0,9.753e-05,2]
[420522992,1776235847487,-588.0,9.753e-05,2]
[420522993,1776235847498,-2500.0,9.812e-05,2]
[420522994,1776235847529,-2500.0,9.812e-05,2]
[420522995,1776235847539,-2500.0,9.812e-05,2]
[420522996,1776235847565,-31558.36729835,9.85e-05,2]
[420522997,1776235847624,-2766.3628448,9.85e-05,2]
[420522998,1776235847646,-17703.52406791,9.85e-05,2]
[420522999,1776235847687,-5324.46837274,9.85e-05,2]
[420523007,1776236438380,510.63,7e-05,10]
[420523015,1776236673936,2440.48,0.000273,120]
[420523016,1776236779417,-3372.1664834,4.9e-05,2]
[420523017,1776236779446,-197.14692092,4.925e-05,2]
[420523018,1776236779472,-1200.0,4.949e-05,2]
[420523019,1776236779499,-5000.0,4.95e-05,2]
[420523020,1776236779523,-230.68659568,4.998e-05,2]
[420523021,1776236782159,-69.31340432,4.998e-05,2]
[420523022,1776236782183,-5656.11572262,5e-05,2]
[420523023,1776236782210,-300.0,5.099e-05,2]
[420523024,1776236782247,-300.0,5.099e-05,2]
[420523025,1776236782284,-300.0,5.099e-05,2]
[420523026,1776236782338,-300.0,5.099e-05,2]
[420523027,1776236782525,-300.0,5.099e-05,2]
[420523028,1776236782782,-300.0,5.099e-05,2]
[420523029,1776236782959,-300.0,5.099e-05,2]
[420523030,1776236783033,-300.0,5.099e-05,2]
[420523031,1776236783076,-300.0,5.099e-05,2]
[420523032,1776236783115,-300.0,5.099e-05,2]
[420523033,1776236783147,-300.0,5.099e-05,2]
[420523034,1776236783181,-300.0,5.099e-05,2]
[420523035,1776236783217,-300.0,5.099e-05,2]
[420523036,1776236783246,-300.0,5.099e-05,2]
[420523037,1776236783275,-74.57087306,5.099e-05,2]
[420523041,1776236798239,-225.42912694,5.099e-05,2]
[420523042,1776236798270,-420.0,5.498e-05,2]
[420523043,1776236800769,5000.0,7e-05,10]
[420523047,1776236890304,-5000.0,6.786e-05,2]
[420523048,1776236890327,-3000.0,6.855e-05,2]
[420523049,1776236915393,-525.0,6.786e-05,2]
[420523050,1776236960997,-3648.60649244,6.786e-05,2]
[420523051,1776236961021,-827.39350756,6.855e-05,2]
[420523058,1776237032718,-1172.60649244,6.855e-05,2]
[420523059,1776237032733,-517.0,6.855e-05,2]
[420523060,1776237032744,-193.2039825,6.89e-05,2]
[420523061,1776237032760,-403.0,7.914e-05,2]
[420523062,1776237032773,-1811.83647218,7.915e-05,2]
[420523063,1776237032784,-430.852006,7.915e-05,2]
[420523064,1776237032803,-2373.80527752,7.915e-05,2]
[420523065,1776237032813,-681.14644715,8.498e-05,2]
[420523066,1776237032823,-1008.33207262,8.619e-05,3]
[420523067,1776237032833,-537.6845,8.619e-05,2]
[420523068,1776237032843,-2032.03508264,8.619e-05,2]
[420523069,1776237032855,-396.67991782,8.619e-05,2]
[420523070,1776237032864,-1968.89170003,8.619e-05,2]
[420523071,1776237032874,-74.60352553,8.619e-05,2]
[420523072,1776237032891,-128.49966029,8.619e-05,2]
[420523073,1776237032901,-878.31817763,8.619e-05,2]
[420523193,1776237038937,-1272.41982237,8.619e-05,2]
[420523194,1776237038950,-5864.9533829,8.624e-05,2]
[420523195,1776237038977,-557.5788265,8.674e-05,2]
[420523196,1776237038997,-578.20924308,8.729e-05,2]
[420523197,1776237039023,-599.60298507,8.784e-05,2]
[420523198,1776237039042,-300.0,8.79e-05,2]
[420523199,1776237039075,-600.0,8.795e-05,2]
[420523200,1776237039086,-151.40829406,8.8e-05,2]
[420523201,1776237039106,-621.78829552,8.839e-05,2]
[420523202,1776237039127,-227.98069935,8.89e-05,2]
[420523203,1776237039138,-644.79446246,8.894e-05,2]
[420523204,1776237039155,-330.08323306,8.949e-05,2]
[420523205,1776237039183,-2230.315306,9.167e-05,2]
[420523206,1776237039198,-715.49353717,9.259e-05,2]
[420523207,1776237039218,-1244.0,9.266e-05,2]
[420523208,1776237039241,-800.0,9.345e-05,2]
[420523209,1776237039270,-500.0,9.367e-05,2]
[420523210,1776237039287,-169.23416865,9.367e-05,2]
[420523211,1776237039317,-500.0,9.367e-05,2]
[420523212,1776237039334,-500.0,9.367e-05,2]
[420523213,1776237039363,-245.5940471,9.367e-05,2]
[420523214,1776237039530,-1408.0,9.369e-05,2]
[420523215,1776237039571,-2208.0,9.369e-05,2]
[420523216,1776237039602,-184.0,9.369e-05,2]
[420523217,1776237039643,-441.0,9.369e-05,2]
[420523218,1776237039661,-800.0,9.413e-05,2]
[420523219,1776237039690,-500.0,9.433e-05,2]
[420523220,1776237039711,-500.0,9.433e-05,2]
[420523221,1776237039741,-500.0,9.433e-05,2]
[420523222,1776237039777,-501.89469596,9.433e-05,2]
[420523223,1776237039796,-500.0,9.433e-05,2]
[420523224,1776237039839,-500.0,9.449e-05,2]
[420523225,1776237039855,-153.2725427,9.449e-05,2]
[420523226,1776237039897,-514.67766238,9.449e-05,2]
[420523227,1776237039936,-500.0,9.449e-05,2]
[420523228,1776237039984,-500.0,9.449e-05,2]
[420523229,1776237040042,-500.0,9.449e-05,2]
[420523230,1776237040090,-450.0,9.449e-05,2]
[420523231,1776237040111,-3378.41781783,9.45e-05,2]
[420523232,1776237040148,-2241.7016255,9.45e-05,2]
[420523244,1776237041397,-88.67854814,9.45e-05,2]
[420523245,1776237041409,-623.8679506,9.45e-05,2]
[420523246,1776237041421,-1197.10362736,9.45e-05,2]
[420523247,1776237041438,-6718.501097,9.45e-05,2]
[420523248,1776237041453,-1200.36558608,9.45e-05,2]
[420523253,1776237044038,-1771.49898391,9.275e-05,2]
[420523254,1776237044082,-1040.29697163,9.275e-05,2]
[420523255,1776237044112,-2188.20404446,9.275e-05,2]
[420523256,1776237044133,-5666.10133917,9.45e-05,2]
[420523257,1776237044161,-400.0,9.45e-05,2]
[420523258,1776237044182,-410.42576979,9.45e-05,2]
[420523259,1776237044219,-9742.05342553,9.45e-05,2]
[420523260,1776237044238,-10380.03185489,9.45e-05,2]
[420523294,1776237047120,-3693.05569602,9.45e-05,2]
[420523295,1776237047177,-6168.10956112,9.45e-05,2]
[420523296,1776237047189,-89887.56773177,9.45e-05,2]
[420523311,1776237128762,81371.9554599,0.00027397,120]
[420523313,1776237441551,1723.0,0.00027397,120]
[420523317,1776237823608,5000.0,7e-05,10]
[420523321,1776237831533,5000.0,7e-05,10]
[420523322,1776237846846,3621.41615036,7e-05,10]
[420523323,1776237846877,1378.58384964,7e-05,10]
[420523347,1776238074331,-4157.50632349,6.794e-05,2]
[420523348,1776238074375,-516.0,6.794e-05,2]
[420523349,1776238074423,-184.78028887,6.898e-05,2]
[420523350,1776238074499,-141.71338764,6.932e-05,2]
[420523353,1776238186017,-164.4155128,3.826e-05,2]
[420523354,1776238186059,-4835.5844872,6.863e-05,2]
[420523379,1776238232139,-164.4155128,6.863e-05,2]
[420523381,1776238232148,-517.0,6.863e-05,2]
[420523382,1776238232160,-30.01020057,6.932e-05,2]
[420523383,1776238232177,-328.27641179,6.932e-05,2]
[420523384,1776238232186,-500.0,7.297e-05,2]
[420523385,1776238232197,-386.74131717,7.681e-05,2]
[420523386,1776238232209,-113.25868283,7.681e-05,2]
[420523387,1776238232219,-151.1251111,7.915e-05,2]
[420523388,1776238232229,-500.0,8.065e-05,2]
[420523389,1776238232239,-398.87857358,8.468e-05,2]
[420523390,1776238232251,-101.12142642,8.468e-05,2]
[420523391,1776238232261,-800.0,8.756e-05,2]
[420523392,1776238232273,-216.31376404,8.858e-05,2]
[420523393,1776238232284,-405.575538,8.858e-05,2]
[420523394,1776238232296,-178.11069796,8.858e-05,2]
[420523395,1776238232308,-235.53680204,8.886e-05,2]
[420523396,1776238232320,-462.5,8.886e-05,2]
[420523397,1776238232331,-442.08,8.886e-05,2]
[420523583,1776238240386,-1010.62119796,8.886e-05,2]
[420523584,1776238240397,-562.87859962,8.892e-05,2]
[420523585,1776238240408,-218.04074086,8.898e-05,2]
[420523586,1776238240418,-629.02460411,9.004e-05,2]
[420523587,1776238240431,-17554.74837009,9.05e-05,2]
[420523588,1776238240445,-5335.74154784,9.05e-05,2]
[420523589,1776238240491,-1917.85952668,9.05e-05,2]
[420523590,1776238240504,-2467.45075736,9.05e-05,2]
[420523591,1776238240520,-772.73702623,9.05e-05,2]
[420523627,1776238240971,-990.72703622,9.05e-05,2]
[420523640,1776238241167,-2906.65470974,9.05e-05,2]
[420523642,1776238241192,-8605.21964216,9.05e-05,2]
[420523644,1776238241207,-4601.70775635,9.05e-05,2]
[420523966,1776238246667,-5434.08732149,9.05e-05,2]
[420523968,1776238246711,-6061.9078761,9.05e-05,2]
[420523972,1776238246766,-57475.22275115,9.05e-05,2]
[420523982,1776238246944,-38079.39537225,9.05e-05,2]
[420523984,1776238246993,-6313.43269193,9.05e-05,2]
[420524162,1776238646142,375962.12853227,0.00026237,120]
[420524173,1776239304412,-5000.0,7.416e-05,10]
[420524174,1776239320705,5000.0,7.5e-05,10]
[420524175,1776239385059,-5000.0,7.378e-05,10]
[420524179,1776239431948,-2941.73055007,7.378e-05,2]
[420524183,1776239432073,-2058.26944993,7.378e-05,2]
[420524185,1776239432083,-524.0,7.378e-05,2]
[420524186,1776239432094,-184.83928038,7.453e-05,2]
[420524189,1776239432105,-506.98651108,7.681e-05,2]
[420524191,1776239432114,-1087.38203127,7.796e-05,2]
[420524313,1776239438492,-112.61796873,7.796e-05,2]
[420524314,1776239438502,-300.0,7.797e-05,2]
[420524315,1776239438518,-503.0,7.797e-05,2]
[420524316,1776239438534,-300.0,7.797e-05,2]
[420524317,1776239438543,-3975.1044463,7.798e-05,2]
[420524318,1776239438555,-177.9051876,8.051e-05,2]
[420524319,1776239438573,-3073.45392415,8.8e-05,2]
[420524320,1776239438583,-500.0,8.823e-05,2]
[420524321,1776239438595,-504.14884301,8.833e-05,2]
[420524322,1776239438611,-500.0,8.833e-05,2]
[420524323,1776239438654,-500.0,8.833e-05,2]
[420524324,1776239438665,-500.0,8.833e-05,2]
[420524325,1776239438678,-500.0,8.833e-05,2]
[420524326,1776239438690,-500.0,8.833e-05,2]
[420524327,1776239438706,-522.09622282,8.848e-05,2]
[420524328,1776239438722,-500.0,8.848e-05,2]
[420524329,1776239438735,-357.44794889,8.848e-05,2]
[420524330,1776239438745,-500.0,8.848e-05,2]
[420524332,1776239438759,-500.0,8.848e-05,2]
[420524334,1776239438772,-500.0,8.848e-05,2]
[420524335,1776239438787,-184.95470958,8.848e-05,2]
[420524337,1776239438800,-500.0,8.848e-05,2]
[420524339,1776239438823,-500.0,8.848e-05,2]
[420524341,1776239438835,-350.0,8.848e-05,2]
[420524343,1776239438860,-500.0,8.848e-05,2]
[420524345,1776239438875,-1382405.61529236,8.849e-05,2]
[420524347,1776239438889,-115590.14773984,8.85e-05,2]
[420524362,1776239440637,-1034.13952273,8.85e-05,2]
[420524363,1776239440652,-1000.0,8.85e-05,2]
[420524408,1776239443593,-502.39402367,8.513e-05,2]
[420524409,1776239443603,-28497.60597633,8.85e-05,2]
[420524425,1776239447033,-2007.56651858,8.513e-05,2]
[420524426,1776239447049,-4991.60111216,8.85e-05,2]
[420524427,1776239447390,-209996.0,8.85e-05,2]
[420524470,1776240031258,194.24477555,0.00018716,120]
[420524472,1776240063286,-2139.10260972,7.6e-05,2]
[420524475,1776240080155,-2635.15012611,8.167e-05,2]
[420524476,1776240080181,-2635.15012611,8.249e-05,2]
[420524477,1776240080203,-1537.1525886,8.249e-05,2]
[420524483,1776240109960,-827.69728529,8.249e-05,2]
[420524484,1776240110209,-536.0,8.249e-05,2]
[420524485,1776240110270,-291.69728529,8.332e-05,2]
[420524486,1776240110308,-208.30271471,8.332e-05,2]
[420524487,1776240110333,-185.25429353,8.374e-05,2]
[420524488,1776240110354,-90.1510309,8.575e-05,2]
[420524534,1776240632154,-399.86526697,7.767e-05,2]
[420524535,1776240632179,-1584.41475223,7.767e-05,2]
[420524536,1776240632193,-529.0,7.767e-05,2]
[420524537,1776240632218,-181.54920766,7.806e-05,2]
[420524538,1776240632251,-300.0,7.844e-05,2]
[420524539,1776240632295,-5000.0,7.845e-05,2]
[420524540,1776240632367,-162.16987261,8.246e-05,2]
[420524541,1776240632468,-300.0,8.329e-05,2]
[420524542,1776240632591,-300.0,8.329e-05,2]
[420524543,1776240632679,-300.0,8.329e-05,2]
[420524544,1776240632719,-500.0,8.433e-05,2]
[420524547,1776240632754,-500.0,8.433e-05,2]
[420524549,1776240632781,-6238.86664889,8.449e-05,2]
[420524551,1776240632806,-500.0,8.449e-05,2]
[420524553,1776240632825,-500.0,8.449e-05,2]
[420524555,1776240632851,-500.0,8.449e-05,2]
[420524556,1776240632869,-500.0,8.449e-05,2]
[420524557,1776240632903,-428.56406927,8.449e-05,2]
[420524558,1776240632914,-56122.63544934,8.45e-05,2]
[420524559,1776240632940,-2425.80830328,8.45e-05,2]
[420524560,1776240632964,-3702.33834764,8.45e-05,2]
[420524561,1776240632990,-859.11990399,8.45e-05,2]
[420524707,1776240646764,-5000.0,8.364e-05,2]
[420524708,1776240646781,-491.96736252,8.448e-05,2]
[420524709,1776240646791,-500.0,8.448e-05,2]
[420524710,1776240646803,-500.0,8.448e-05,2]
[420524711,1776240646819,-500.0,8.448e-05,2]
[420524712,1776240646829,-500.0,8.448e-05,2]
[420524713,1776240646838,-500.0,8.448e-05,2]
[420524714,1776240646849,-500.0,8.448e-05,2]
[420524715,1776240646866,-500.0,8.448e-05,2]
[420524716,1776240646876,-500.0,8.448e-05,2]
[420524717,1776240646886,-334.1954679,8.448e-05,2]
[420524718,1776240646949,-165.8045321,8.448e-05,2]
[420524719,1776240646959,-500.0,8.448e-05,2]
[420524720,1776240646972,-500.0,8.448e-05,2]
[420524721,1776240646985,-500.0,8.448e-05,2]
[420524722,1776240647003,-500.0,8.448e-05,2]
[420524724,1776240647013,-500.0,8.448e-05,2]
[420524725,1776240647025,-500.0,8.448e-05,2]
[420524726,1776240647044,-500.0,8.448e-05,2]
[420524727,1776240647053,-500.0,8.448e-05,2]
[420524728,1776240647073,-500.0,8.448e-05,2]
[420524729,1776240647090,-568.51429883,8.448e-05,2]
[420524730,1776240647112,-500.0,8.448e-05,2]
[420524731,1776240647127,-500.0,8.448e-05,2]
[420524732,1776240647150,-500.0,8.448e-05,2]
[420524733,1776240647169,-500.0,8.448e-05,2]
[420524734,1776240647194,-500.0,8.448e-05,2]
[420524735,1776240647212,-97.67160851,8.448e-05,2]
[420524828,1776241832798,-5000.0,7.333e-05,2]
[420524830,1776241832808,-524.0,7.333e-05,2]
[420524832,1776241832827,-1938.57731308,7.407e-05,2]
[420524834,1776241832841,-300.0,7.634e-05,2]
[420524835,1776241832854,-300.0,7.634e-05,2]
[420524837,1776241832878,-177.91822351,7.636e-05,2]
[420524839,1776241832893,-562.87859962,7.681e-05,2]
[420524840,1776241832917,-233.52220264,8.219e-05,2]
[420524842,1776241832934,-1200.0,8.232e-05,2]
[420524844,1776241832957,-500.0,8.233e-05,2]
[420524846,1776241832979,-563.33169773,8.233e-05,2]
[420524848,1776241833009,-500.0,8.233e-05,2]
[420524850,1776241833055,-500.37511949,8.233e-05,2]
[420524852,1776241833125,-500.0,8.233e-05,2]
[420524854,1776241833197,-500.0,8.233e-05,2]
[420524856,1776241833239,-500.0,8.233e-05,2]
[420524858,1776241833271,-183.83304749,8.247e-05,2]
[420524860,1776241833303,-500.0,8.247e-05,2]
[420524862,1776241833331,-500.0,8.247e-05,2]
[420524864,1776241833354,-500.0,8.247e-05,2]
[420524866,1776241833371,-500.0,8.247e-05,2]
[420524868,1776241833390,-500.0,8.247e-05,2]
[420524870,1776241833410,-500.0,8.247e-05,2]
[420524872,1776241833425,-500.0,8.247e-05,2]
[420524874,1776241833439,-552.74975593,8.247e-05,2]
[420524876,1776241833454,-14030.16547709,8.248e-05,2]
[420524981,1776241841497,-1751.73676825,8.163e-05,2]
[420524982,1776241841556,-3248.26323175,8.163e-05,2]
[420524983,1776241841566,-500.0,8.245e-05,2]
[420524984,1776241841575,-500.0,8.245e-05,2]
[420524985,1776241841585,-500.0,8.245e-05,2]
[420524986,1776241841594,-500.0,8.245e-05,2]
[420524987,1776241841604,-500.0,8.245e-05,2]
[420524988,1776241841613,-500.0,8.245e-05,2]
[420524989,1776241841624,-500.0,8.245e-05,2]
[420524990,1776241841633,-500.0,8.245e-05,2]
[420524991,1776241841643,-500.0,8.245e-05,2]
[420524992,1776241841652,-489.4994513,8.245e-05,2]
[420524993,1776241841662,-500.0,8.245e-05,2]
[420524994,1776241841671,-500.0,8.245e-05,2]
[420524995,1776241841680,-500.0,8.245e-05,2]
[420524996,1776241841690,-500.0,8.245e-05,2]
[420524997,1776241841700,-500.0,8.245e-05,2]
[420524998,1776241841710,-200.0,8.245e-05,2]
[420524999,1776241841719,-500.0,8.245e-05,2]
[420525000,1776241841729,-500.0,8.245e-05,2]
[420525001,1776241841738,-500.0,8.245e-05,2]
[420525002,1776241841747,-500.0,8.245e-05,2]
[420525003,1776241841757,-500.0,8.245e-05,2]
[420525004,1776241841766,-500.0,8.245e-05,2]
[420525005,1776241841776,-500.0,8.245e-05,2]
[420525006,1776241841936,-500.0,8.245e-05,2]
[420525007,1776241841949,-500.0,8.245e-05,2]
[420525008,1776241841959,-500.0,8.245e-05,2]
[420525009,1776241841969,-500.0,8.245e-05,2]
[420525010,1776241841979,-500.0,8.245e-05,2]
[420525011,1776241841989,-500.0,8.245e-05,2]
[420525012,1776241841999,-500.0,8.245e-05,2]
[420525013,1776241842010,-500.0,8.245e-05,2]
[420525014,1776241842020,-500.0,8.245e-05,2]
[420525015,1776241842029,-500.0,8.245e-05,2]
[420525016,1776241842039,-351.67071429,8.245e-05,2]
[420525017,1776241842049,-500.0,8.245e-05,2]
[420525018,1776241842058,-500.0,8.245e-05,2]
[420525019,1776241842068,-500.0,8.245e-05,2]
[420525020,1776241842077,-500.0,8.245e-05,2]
[420525021,1776241842087,-500.0,8.245e-05,2]
[420525022,1776241842096,-500.0,8.245e-05,2]
[420525023,1776241842106,-500.0,8.245e-05,2]
[420525024,1776241842116,-500.0,8.245e-05,2]
[420525025,1776241842125,-500.0,8.245e-05,2]
[420525026,1776241842136,-500.0,8.245e-05,2]
[420525027,1776241842145,-500.0,8.245e-05,2]
[420525028,1776241842155,-500.0,8.245e-05,2]
[420525029,1776241842167,-35714.68327774,8.248e-05,2]
[420525041,1776241843801,-478.55877297,8.248e-05,2]
[420525042,1776241844016,-48517.17312137,8.248e-05,2]
[420525047,1776241846921,-27560.39669025,8.248e-05,2]
[420525048,1776241847115,-1699.29526093,8.248e-05,2]
[420525049,1776241847168,-83676.71353988,8.248e-05,2]
[420525061,1776242647991,-4820.87637274,6.885e-05,2]
[420525062,1776242648085,-5000.0,6.955e-05,2]
[420525063,1776242653539,179.12362726,7e-05,2]
[420525064,1776242693465,-4249.26432337,7e-05,2]
[420525065,1776242702354,-519.0,7.024e-05,2]
[420525066,1776242702375,-231.73567663,7.024e-05,2]
[420525067,1776242722066,-5000.0,6.954e-05,2]
[420525208,1776242867942,-767.42205048,6.815e-05,2]
[420525209,1776242867971,-517.0,6.815e-05,2]
[420525210,1776242867996,-178.72067385,6.85e-05,2]
[420525211,1776242868022,-3152.53486641,6.884e-05,2]
[420525212,1776242868048,-154.0,6.954e-05,2]
[420525213,1776242873978,-230.32240926,7.023e-05,2]
[420525219,1776243032644,-384.768375,6.884e-05,2]
[420525241,1776243042245,-2732.69675859,6.884e-05,2]
[420525242,1776243042255,-518.0,6.884e-05,2]
[420525243,1776243042265,-931.4243671,6.953e-05,2]
[420525244,1776243042332,-268.5756329,6.953e-05,2]
[420525246,1776243042342,-79.57477688,6.954e-05,2]
[420525254,1776243043027,-790.42522312,6.954e-05,2]
[420525255,1776243043037,-300.0,7.023e-05,2]
[420525256,1776243043065,-300.0,7.023e-05,2]
[420525257,1776243043075,-300.0,7.023e-05,2]
[420525258,1776243043086,-500.0,7.025e-05,2]
[420525259,1776243043108,-500.0,7.025e-05,2]
[420525260,1776243043120,-500.0,7.025e-05,2]
[420525261,1776243043136,-500.0,7.025e-05,2]
[420525262,1776243043153,-500.0,7.025e-05,2]
[420525263,1776243043163,-500.0,7.025e-05,2]
[420525264,1776243043177,-500.0,7.025e-05,2]
[420525265,1776243043194,-500.0,7.025e-05,2]
[420525266,1776243043204,-500.0,7.025e-05,2]
[420525267,1776243043214,-500.0,7.025e-05,2]
[420525268,1776243043226,-500.0,7.025e-05,2]
[420525269,1776243043241,-500.0,7.025e-05,2]
[420525270,1776243043251,-500.0,7.025e-05,2]
[420525271,1776243043265,-500.0,7.025e-05,2]
[420525272,1776243043283,-500.0,7.025e-05,2]
[420525273,1776243043295,-162.71476997,7.025e-05,2]
[420525274,1776243043305,-500.0,7.025e-05,2]
[420525275,1776243043326,-500.0,7.025e-05,2]
[420525276,1776243043343,-500.0,7.025e-05,2]
[420525277,1776243043358,-500.0,7.025e-05,2]
[420525278,1776243043384,-500.0,7.025e-05,2]
[420525279,1776243043399,-500.0,7.025e-05,2]
[420525280,1776243043586,-500.0,7.025e-05,2]
[420525281,1776243043607,-500.0,7.025e-05,2]
[420525282,1776243043623,-500.0,7.025e-05,2]
[420525283,1776243043636,-500.0,7.025e-05,2]
[420525284,1776243043649,-500.0,7.025e-05,2]
[420525285,1776243043666,-500.0,7.025e-05,2]
[420525286,1776243043682,-500.0,7.025e-05,2]
[420525287,1776243043694,-500.0,7.025e-05,2]
[420525288,1776243043710,-500.0,7.025e-05,2]
[420525289,1776243043731,-112.43257123,7.025e-05,2]
[420525290,1776243043754,-288.49419912,7.025e-05,2]
[420525291,1776243043774,-500.0,7.025e-05,2]
[420525292,1776243043790,-500.0,7.025e-05,2]
[420525293,1776243043803,-500.0,7.025e-05,2]
[420525294,1776243043821,-500.0,7.025e-05,2]
[420525295,1776243043835,-166.88949222,7.025e-05,2]
[420525305,1776243046210,-333.11050778,7.025e-05,2]
[420525306,1776243046225,-500.0,7.025e-05,2]
[420525307,1776243046239,-74.7698567,7.025e-05,2]
[420525308,1776243046328,-425.2301433,7.025e-05,2]
[420525309,1776243046339,-500.0,7.025e-05,2]
[420525310,1776243046349,-500.0,7.025e-05,2]
[420525311,1776243046358,-500.0,7.025e-05,2]
[420525312,1776243046372,-500.0,7.025e-05,2]
[420525313,1776243046385,-650.0,7.025e-05,2]
[420525314,1776243046395,-500.0,7.025e-05,2]
[420525315,1776243046406,-500.0,7.025e-05,2]
[420525316,1776243046418,-57.57699382,7.025e-05,2]
[420525317,1776243046447,-442.42300618,7.025e-05,2]
[420525318,1776243046458,-490.79295362,7.025e-05,2]
[420525319,1776243046470,-500.0,7.025e-05,2]
[420525320,1776243046482,-500.0,7.025e-05,2]
[420525321,1776243046491,-2263.47840561,7.026e-05,2]
[420525322,1776243046505,-954.11270557,7.026e-05,2]
[420525323,1776243046520,-12165.91081464,7.026e-05,2]
[420525324,1776243046532,-569.37999998,7.026e-05,2]
[420525325,1776243046551,-26972.1327236,7.026e-05,2]
[420525326,1776243046561,-600.0,7.165e-05,2]
[420525327,1776243046571,-300.0,7.166e-05,2]
[420525328,1776243046581,-300.0,7.166e-05,2]
[420525329,1776243046592,-300.0,7.166e-05,2]
[420525330,1776243046602,-300.0,7.166e-05,2]
[420525331,1776243046613,-300.0,7.166e-05,2]
[420525332,1776243046623,-300.0,7.166e-05,2]
[420525333,1776243046633,-300.0,7.166e-05,2]
[420525334,1776243046643,-300.0,7.166e-05,2]
[420525335,1776243046653,-300.0,7.166e-05,2]
[420525336,1776243046662,-300.0,7.166e-05,2]
[420525337,1776243046672,-300.0,7.166e-05,2]
[420525338,1776243046683,-300.0,7.166e-05,2]
[420525339,1776243046693,-300.0,7.166e-05,2]
[420525340,1776243046704,-300.0,7.166e-05,2]
[420525341,1776243046714,-300.0,7.166e-05,2]
[420525342,1776243046724,-12279.19654314,7.166e-05,2]
[420525343,1776243046734,-600.0,7.308e-05,2]
[420525344,1776243046745,-785.0,7.648e-05,2]